lending/lending_fUSD_20240711
["ID","MTS","AMOUNT","RATE_DAILY","PERIOD"]
[331739813,1720729847183,-151.0,0.00013973,2]
[331739814,1720729847193,-151.0,0.00013973,2]
[331739815,1720729847202,-151.0,0.00013973,2]
[331739816,1720729847211,-177.97708,0.00013973,2]
[331739817,1720729847220,-177.97708,0.00013973,2]
[331739818,1720729847230,-500.0,0.00013973,2]
[331739819,1720729847239,-151.0,0.00013973,2]
[331739820,1720729847248,-151.0,0.00013973,2]
[331739821,1720729847257,-243.112392,0.00013973,2]
[331739822,1720729847267,-500.0,0.00013973,2]
[331739823,1720729847276,-151.0,0.00013973,2]
[331739824,1720729847285,-187.197922,0.00013973,2]
[331739825,1720729847294,-187.197922,0.00013973,2]
[331739826,1720729847303,-361.554222,0.00013973,2]
[331739827,1720729847312,-361.554222,0.00013973,2]
[331739828,1720729847322,-500.0,0.00013973,2]
[331739829,1720729847332,-500.0,0.00013973,2]
[331739830,1720729847345,-500.0,0.00013973,2]
[331739831,1720729847354,-500.0,0.00013973,2]
[331739832,1720729847363,-500.0,0.00013973,2]
[331739833,1720729847373,-500.0,0.00013973,2]
[331739834,1720729847382,-2232.36,0.00013973,2]
[331739835,1720729847391,-500.0,0.00013973,2]
[331739836,1720729847400,-201.0,0.0001398,2]
[331739837,1720729847411,-533.6633,0.00013986,2]
[331739838,1720729847420,-6092.77654451,0.0001399,2]
[331739839,1720729847429,-205.0,0.0001399,2]
[331739840,1720729847438,-201.0,0.0001399,2]
[331739841,1720729847449,-245.0,0.0001399,2]
[331739842,1720729847458,-200.0,0.0001399,2]
[331739843,1720729847467,-200.0,0.0001399,2]
[331739844,1720729847477,-202.0,0.0001399,2]
[331739845,1720729847486,-151.0,0.0001399,2]
[331739846,1720729847495,-151.0,0.0001399,2]
[331739847,1720729847505,-151.0,0.0001399,2]
[331739848,1720729847514,-166.672458,0.0001399,2]
[331739849,1720729847523,-151.0,0.0001399,2]
[331739850,1720729847532,-166.672458,0.0001399,2]
[331739851,1720729847542,-151.0,0.0001399,2]
[331739852,1720729847551,-555.834659,0.00013998,2]
[331739853,1720729847560,-14195.858364,0.00013998,2]
[331739854,1720729847569,-1031.545999,0.00013998,2]
[331739855,1720729847578,-9820.250761,0.00013998,2]
[331739856,1720729847587,-712.273366,0.00013998,2]
[331739857,1720729847596,-509.033665,0.00013998,2]
[331739858,1720729847605,-1507.938086,0.00013998,2]
[331739859,1720729847614,-4280.380382,0.00013998,2]
[331739860,1720729847623,-633.247353,0.00013998,2]
[331739861,1720729847632,-177.786747,0.00013998,2]
[331739862,1720729847642,-182.805213,0.00013998,2]
[331739863,1720729847651,-174.522798,0.00013998,2]
[331739864,1720729847660,-151.0,0.00013998,2]
[331739865,1720729847669,-151.0,0.00013998,2]
[331739866,1720729847678,-151.0,0.00013998,2]
[331739867,1720729847687,-151.0,0.00013998,2]
[331739868,1720729847697,-151.0,0.00013998,2]
[331739869,1720729847706,-151.0,0.00013998,2]
[331739870,1720729847715,-236.88976,0.00013998,2]
[331739871,1720729847724,-258.195706,0.00013998,2]
[331739872,1720729847734,-151.0,0.00013998,2]
[331739873,1720729847743,-236.88976,0.00013998,2]
[331739874,1720729847752,-258.195706,0.00013998,2]
[331739875,1720729847761,-151.0,0.00013998,2]
[331739876,1720729847770,-299.04705,0.00013998,2]
[331739877,1720729847779,-151.0,0.00013998,2]
[331739878,1720729847789,-151.0,0.00013998,2]
[331739879,1720729847799,-299.804851,0.00013998,2]
[331739880,1720729847807,-151.0,0.00013998,2]
[331739881,1720729847816,-256071.10083366,0.00013999,2]
[331739882,1720729847825,-292.142434,0.00013999,2]
[331739883,1720729847834,-300.614631,0.00013999,2]
[331739884,1720729847843,-151.0,0.00013999,2]
[331739885,1720729847852,-151.0,0.00013999,2]
[331739886,1720729847861,-151.0,0.00013999,2]
[331739887,1720729847870,-151.0,0.00013999,2]
[331739888,1720729847880,-151.0,0.00013999,2]
[331739889,1720729847889,-151.0,0.00013999,2]
[331739890,1720729847898,-151.0,0.00013999,2]
[331739891,1720729847907,-151.0,0.00013999,2]
[331739892,1720729847916,-151.0,0.00013999,2]
[331739893,1720729847926,-151.0,0.00013999,2]
[331739894,1720729847935,-151.0,0.00013999,2]
[331739895,1720729847944,-151.0,0.00013999,2]
[331739896,1720729847953,-151.472345,0.00013999,2]
[331739897,1720729847963,-151.0,0.00013999,2]
[331739898,1720729847972,-151.0,0.00013999,2]
[331739899,1720729847981,-151.0,0.00013999,2]
[331739900,1720729847990,-236.88976,0.00013999,2]
[331739901,1720729848000,-258.195706,0.00013999,2]
[331739902,1720729848009,-236.88976,0.00013999,2]
[331739903,1720729848018,-258.195706,0.00013999,2]
[331739904,1720729848027,-151.0,0.00013999,2]
[331739905,1720729848036,-151.0,0.00013999,2]
[331739906,1720729848046,-151.0,0.00013999,2]
[331739907,1720729848055,-151.0,0.00013999,2]
[331739908,1720729848065,-151.0,0.00013999,2]
[331739909,1720729848074,-151.0,0.00013999,2]
[331739910,1720729848084,-151.0,0.00013999,2]
[331739911,1720729848093,-166.672458,0.00013999,2]
[331739912,1720729848102,-152.267978,0.00013999,2]
[331739913,1720729848111,-166.672458,0.00013999,2]
[331739914,1720729848120,-151.0,0.00013999,2]
[331739915,1720729848129,-151.0,0.00013999,2]
[331739916,1720729848138,-151.623591,0.00013999,2]
[331739917,1720729848147,-152.216045,0.00013999,2]
[331739918,1720729848157,-152.216045,0.00013999,2]
[331739919,1720729848166,-151.552311,0.00013999,2]
[331739920,1720729848175,-171.802549,0.00013999,2]
[331739921,1720729848185,-151.0,0.00013999,2]
[331739922,1720729848194,-171.802549,0.00013999,2]
[331739923,1720729848203,-151.0,0.00013999,2]
[331739924,1720729848213,-151.0,0.00013999,2]
[331739925,1720729848223,-151.0,0.00013999,2]
[331739926,1720729848232,-151.0,0.00013999,2]
[331739927,1720729848241,-220.618309,0.00013999,2]
[331739928,1720729848251,-220.618309,0.00013999,2]
[331739929,1720729848261,-151.0,0.00013999,2]
[331739930,1720729848271,-317.308152,0.00013999,2]
[331739931,1720729848280,-317.308152,0.00013999,2]
[331739932,1720729848289,-151.0,0.00013999,2]
[331739933,1720729848299,-151.0,0.00013999,2]
[331739934,1720729848308,-151.0,0.00013999,2]
[331739935,1720729848317,-255.834309,0.00013999,2]
[331739936,1720729848327,-205.138149,0.00013999,2]
[331739937,1720729848340,-205.138149,0.00013999,2]
[331739938,1720729848349,-151.0,0.00013999,2]
[331739939,1720729848359,-151.0,0.00013999,2]
[331739940,1720729848368,-156.3277,0.00013999,2]
[331739941,1720729848379,-156.3277,0.00013999,2]
[331739942,1720729848388,-151.0,0.00013999,2]
[331739943,1720729848397,-151.0,0.00013999,2]
[331739944,1720729848407,-151.0,0.00013999,2]
[331739945,1720729848420,-151.0,0.00013999,2]
[331739946,1720729848430,-151.0,0.00013999,2]
[331739947,1720729848439,-151.0,0.00013999,2]
[331739948,1720729848451,-151.0,0.00013999,2]
[331739949,1720729848461,-151.792408,0.00013999,2]
[331739950,1720729848473,-151.0,0.00013999,2]
[331739951,1720729848483,-151.0,0.00013999,2]
[331739952,1720729848494,-262.69878,0.00013999,2]
[331739953,1720729848504,-1014.536728,0.00013999,2]
[331739954,1720729848513,-262.69878,0.00013999,2]
[331739955,1720729848523,-1014.536728,0.00013999,2]
[331739956,1720729848533,-151.0,0.00013999,2]
[331739957,1720729848543,-151.0,0.00013999,2]
[331739958,1720729848553,-151.0,0.00013999,2]
[331739959,1720729848562,-151.0,0.00013999,2]
[331739960,1720729848576,-151.0,0.00013999,2]
[331739961,1720729848609,-151.0,0.00013999,2]
[331739962,1720729848650,-177.97708,0.00013999,2]
[331739963,1720729848696,-177.97708,0.00013999,2]
[331739964,1720729848745,-151.0,0.00013999,2]
[331739965,1720729848792,-264.068554,0.00013999,2]
[331739966,1720729848826,-154.014662,0.00013999,2]
[331739967,1720729848836,-151.0,0.00013999,2]
[331739968,1720729848845,-151.0,0.00013999,2]
[331739969,1720729848855,-187.197922,0.00013999,2]
[331739970,1720729848864,-187.197922,0.00013999,2]
[331739971,1720729848875,-361.554222,0.00013999,2]
[331739972,1720729848885,-361.554222,0.00013999,2]
[331739973,1720729848895,-151.0,0.00013999,2]
[331739974,1720729848904,-205.013257,0.00013999,2]
[331739975,1720729848914,-151.522282,0.00013999,2]
[331739976,1720729848923,-205.013257,0.00013999,2]
[331739977,1720729848933,-151.0,0.00013999,2]
[331739978,1720729848944,-433.280308,0.00013999,2]
[331739979,1720729848953,-433.280308,0.00013999,2]
[331739980,1720729848964,-1711.205633,0.00013999,2]
[331739981,1720729848973,-151.0,0.00013999,2]
[331739982,1720729848983,-1711.205633,0.00013999,2]
[331739983,1720729848992,-151.0,0.00013999,2]
[331739984,1720729849002,-2179.42949,0.00013999,2]
[331739985,1720729849012,-2179.42949,0.00013999,2]
[331739986,1720729849106,-561.837775,0.00013999,2]
[331739987,1720729849117,-561.837775,0.00013999,2]
[331739988,1720729849126,-203.305947,0.00013999,2]
[331739989,1720729849135,-203.305947,0.00013999,2]
[331739990,1720729849146,-151.0,0.00013999,2]
[331739991,1720729849155,-162.463873,0.00013999,2]
[331739992,1720729849164,-235.189634,0.00013999,2]
[331739993,1720729849173,-235.189634,0.00013999,2]
[331739994,1720729849182,-1129.286257,0.00013999,2]
[331739995,1720729849193,-1889.839492,0.00013999,2]
[331739996,1720729849203,-151.0,0.00013999,2]
[331739997,1720729849212,-1129.286257,0.00013999,2]
[331739998,1720729849222,-373.751749,0.00013999,2]
[331739999,1720729849232,-1889.839492,0.00013999,2]
[331740000,1720729849241,-373.751749,0.00013999,2]
[331740001,1720729849251,-151.0,0.00013999,2]
[331740002,1720729849260,-646.879817,0.00013999,2]
[331740003,1720729849270,-151.57186,0.00013999,2]
[331740004,1720729849280,-646.879817,0.00013999,2]
[331740005,1720729849289,-1427.80245,0.00013999,2]
[331740006,1720729849299,-1427.80245,0.00013999,2]
[331740007,1720729849308,-1168.043218,0.00013999,2]
[331740008,1720729849318,-205063.30309144,0.00014,2]
[331740009,1720729849327,-697939.92821166,0.00014,2]
[331740010,1720729849340,-1635469.28578205,0.00014,2]
[331740011,1720729849377,-695.45122669,0.00014,2]
[331740012,1720729849407,-598.1597748,0.00014,2]
[331740013,1720729849462,-6347.26665407,0.00014,2]
[331740014,1720729849535,-6161.1919003,0.00014,2]
[331740015,1720729849597,-4406.4475,0.00014,2]
[331740016,1720729849608,-2552.07302419,0.00014,2]
[331740017,1720729851338,-4858.02,0.00014,2]
[331740018,1720729851349,-10693.98449672,0.00014,2]
[331740019,1720729851372,-2938.02666027,0.00014,2]
[331740020,1720729851385,-1500.042676,0.00014,2]
[331740021,1720729851396,-1216.15843688,0.00014,2]
[331740022,1720729851409,-1819.20996264,0.00014,2]
[331740023,1720729851420,-1826.83352387,0.00014,2]
[331740024,1720729851431,-994.82690771,0.00014,2]
[331740025,1720729851531,-1299.650178,0.00014,2]
[331740026,1720729865406,-1371.16970358,0.00014,2]
[331740027,1720729865425,-688.56235155,0.00014,2]
[331740028,1720729865436,-463.17711551,0.00014,2]
[331740029,1720729865448,-2746.85478186,0.00014,2]
[331740030,1720729865462,-31837.60381992,0.00014,2]
[331740031,1720729865474,-6246.50973598,0.00014,2]
[331740032,1720729865484,-993.56644484,0.00014,2]
[331740033,1720729865919,-227.30730583,0.00013128,2]
[331740034,1720729865929,-151.0,0.00013864,2]
[331740035,1720729865939,-1168.043218,0.00013864,2]
[331740036,1720729865949,-151.0,0.0001397,2]
[331740037,1720729865959,-1168.043218,0.0001397,2]
[331740038,1720729865969,-151.0,0.00013999,2]
[331740039,1720729865977,-1168.043218,0.00013999,2]
[331740040,1720729865987,-2835.56304017,0.00014,2]
[331740041,1720729865998,-131788.91293642,0.00014,2]
[331740042,1720729866008,-500.0,0.00014,2]
[331740043,1720729866025,-2061.611112,0.00014,2]
[331740044,1720729866036,-1150.882004,0.00014,2]
[331740045,1720729866047,-694.63,0.00014,2]
[331740046,1720729866058,-12140.02789992,0.00014,2]
[331740047,1720729866069,-8265.44517896,0.00014,2]
[331740048,1720729866082,-724.30320271,0.00014,2]
[331740049,1720729866095,-12545.53193996,0.00014,2]
[331740050,1720729866108,-677.86855122,0.00014,2]
[331740051,1720729866120,-648.14925961,0.00014,2]
[331740052,1720729866133,-751.33678967,0.00014,2]
[331740053,1720729866151,-109718.35102321,0.00014,2]
[331740054,1720729866162,-776.4,0.00014,2]
[331740055,1720729866173,-631.34941224,0.00014,2]
[331740056,1720729893159,500.0,0.0001126,2]
[331740057,1720729928472,500.0,0.0001126,2]
[331740058,1720730128716,464.85,0.00010937,2]
[331740061,1720730258903,151.071205,0.00025,62]
[331740062,1720730260114,151.071205,0.00025,62]
[331740063,1720730260681,151.071205,0.00025,62]
[331740064,1720730261147,151.071205,0.00025,62]
[331740065,1720730261773,151.071205,0.00025,62]
[331740066,1720730263352,151.071205,0.00025,62]
[331740067,1720730264098,151.071205,0.00025,62]
[331740068,1720730264654,151.071205,0.00025,62]
[331740069,1720730265218,151.071205,0.00025,62]
[331740070,1720730265779,151.071205,0.00025,62]
[331740071,1720730270299,151.071205,0.00025,63]
[331740072,1720730271208,151.071205,0.00025,63]
[331740073,1720730271582,151.071205,0.00025,63]
[331740074,1720730272142,151.071205,0.00025,63]
[331740075,1720730272668,151.071205,0.00025,63]
[331740076,1720730273202,151.071205,0.00025,63]
[331740077,1720730273716,151.071205,0.00025,63]
[331740078,1720730274261,151.071205,0.00025,63]
[331740079,1720730274810,151.071205,0.00025,63]
[331740080,1720730275359,151.071205,0.00025,63]
[331740081,1720730278871,151.071205,0.00025,64]
[331740082,1720730279279,151.071205,0.00025,64]
[331740083,1720730279824,151.071205,0.00025,64]
[331740084,1720730280318,151.071205,0.00025,64]
[331740085,1720730280955,151.071205,0.00025,64]
[331740086,1720730281359,151.071205,0.00025,64]
[331740087,1720730281871,151.071205,0.00025,64]
[331740088,1720730282517,151.071205,0.00025,64]
[331740089,1720730282898,151.071205,0.00025,64]
[331740090,1720730283478,151.071205,0.00025,64]
[331740091,1720730287145,151.071205,0.00025,65]
[331740092,1720730287687,151.071205,0.00025,65]
[331740093,1720730288195,151.071205,0.00025,65]
[331740094,1720730288693,151.071205,0.00025,65]
[331740095,1720730289258,151.071205,0.00025,65]
[331740096,1720730289710,151.071205,0.00025,65]
[331740097,1720730290211,151.071205,0.00025,65]
[331740098,1720730290712,151.071205,0.00025,65]
[331740099,1720730291276,151.071205,0.00025,65]
[331740100,1720730291731,151.071205,0.00025,65]
[331740101,1720730303247,151.071205,0.00025,69]
[331740102,1720730303768,151.071205,0.00025,69]
[331740103,1720730304244,151.071205,0.00025,69]
[331740104,1720730304743,151.071205,0.00025,69]
[331740105,1720730305266,151.071205,0.00025,69]
[331740106,1720730305787,151.071205,0.00025,69]
[331740107,1720730306278,151.071205,0.00025,69]
[331740108,1720730306791,151.071205,0.00025,69]
[331740109,1720730307401,151.071205,0.00025,69]
[331740110,1720730307952,151.071205,0.00025,69]
[331740111,1720730313150,151.071205,0.00025,70]
[331740112,1720730313726,151.071205,0.00025,70]
[331740113,1720730314238,151.071205,0.00025,70]
[331740114,1720730314695,151.071205,0.00025,70]
[331740115,1720730315202,151.071205,0.00025,70]
[331740116,1720730315661,151.071205,0.00025,70]
[331740117,1720730316171,151.071205,0.00025,70]
[331740118,1720730316872,151.071205,0.00025,70]
[331740119,1720730317141,151.071205,0.00025,70]
[331740120,1720730317732,151.071205,0.00025,70]
[331740121,1720730346572,151.071205,0.00025,71]
[331740122,1720730347093,151.071205,0.00025,71]
[331740123,1720730347586,151.071205,0.00025,71]
[331740124,1720730348082,151.071205,0.00025,71]
[331740125,1720730348616,151.071205,0.00025,71]
[331740126,1720730349107,151.071205,0.00025,71]
[331740127,1720730349612,151.071205,0.00025,71]
[331740128,1720730350246,151.071205,0.00025,71]
[331740129,1720730350861,151.071205,0.00025,71]
[331740130,1720730351445,151.071205,0.00025,71]
[331740131,1720730354854,151.071205,0.00025,72]
[331740132,1720730355657,151.071205,0.00025,72]
[331740133,1720730355882,151.071205,0.00025,72]
[331740134,1720730356389,151.071205,0.00025,72]
[331740135,1720730356910,151.071205,0.00025,72]
[331740136,1720730357603,151.071205,0.00025,72]
[331740137,1720730357942,151.071205,0.00025,72]
[331740138,1720730358431,151.071205,0.00025,72]
[331740139,1720730358958,151.071205,0.00025,72]
[331740140,1720730359481,151.071205,0.00025,72]
[331740141,1720730391101,155.52012646,0.00011199,2]
[331740142,1720730401701,364.54506613,0.00011199,2]
[331740147,1720730590436,151.071205,0.00025,76]
[331740148,1720730591196,151.071205,0.00025,76]
[331740149,1720730591747,151.071205,0.00025,76]
[331740150,1720730592352,151.071205,0.00025,76]
[331740151,1720730592973,151.071205,0.00025,76]
[331740152,1720730593488,151.071205,0.00025,76]
[331740153,1720730594068,151.071205,0.00025,76]
[331740154,1720730594650,151.071205,0.00025,76]
[331740155,1720730595845,151.071205,0.00025,76]
[331740156,1720730595922,151.071205,0.00025,76]
[331740157,1720730600318,151.071205,0.00025,77]
[331740158,1720730601030,151.071205,0.00025,77]
[331740159,1720730601667,151.071205,0.00025,77]
[331740160,1720730602338,151.071205,0.00025,77]
[331740161,1720730602960,151.071205,0.00025,77]
[331740162,1720730603572,151.071205,0.00025,77]
[331740163,1720730604149,151.071205,0.00025,77]
[331740164,1720730604762,151.071205,0.00025,77]
[331740165,1720730605410,151.071205,0.00025,77]
[331740166,1720730606065,151.071205,0.00025,77]
[331740167,1720730613665,151.071205,0.00025,78]
[331740168,1720730614299,151.071205,0.00025,78]
[331740169,1720730614910,151.071205,0.00025,78]
[331740170,1720730615484,151.071205,0.00025,78]
[331740171,1720730616087,151.071205,0.00025,78]
[331740172,1720730616663,151.071205,0.00025,78]
[331740173,1720730617274,151.071205,0.00025,78]
[331740174,1720730617876,151.071205,0.00025,78]
[331740175,1720730618522,151.071205,0.00025,78]
[331740176,1720730619163,151.071205,0.00025,78]
[331740179,1720730630903,151.071205,0.00025,62]
[331740180,1720730631642,151.071205,0.00025,62]
[331740181,1720730632253,151.071205,0.00025,62]
[331740182,1720730632848,151.071205,0.00025,62]
[331740183,1720730633400,151.071205,0.00025,62]
[331740184,1720730633988,151.071205,0.00025,62]
[331740185,1720730634688,151.071205,0.00025,62]
[331740186,1720730635377,151.071205,0.00025,62]
[331740187,1720730636006,151.071205,0.00025,62]
[331740188,1720730636643,151.071205,0.00025,62]
[331740190,1720730654320,157.071205,0.00025,63]
[331740191,1720730655652,157.071205,0.00025,63]
[331740192,1720730655695,157.071205,0.00025,63]
[331740193,1720730656228,157.071205,0.00025,63]
[331740194,1720730656792,157.071205,0.00025,63]
[331740195,1720730657603,157.071205,0.00025,63]
[331740196,1720730657984,157.071205,0.00025,63]
[331740197,1720730658628,157.071205,0.00025,63]
[331740198,1720730659343,157.071205,0.00025,63]
[331740199,1720730660093,157.071205,0.00025,63]
[331740200,1720730667573,167.071205,0.00025,64]
[331740201,1720730668115,167.071205,0.00025,64]
[331740202,1720730668661,167.071205,0.00025,64]
[331740203,1720730669263,167.071205,0.00025,64]
[331740204,1720730669863,167.071205,0.00025,64]
[331740205,1720730670434,167.071205,0.00025,64]
[331740206,1720730671027,167.071205,0.00025,64]
[331740207,1720730671718,167.071205,0.00025,64]
[331740208,1720730672398,167.071205,0.00025,64]
[331740209,1720730673116,167.071205,0.00025,64]
[331740210,1720730677214,467.58,0.00010871,2]
[331740211,1720730690803,173.071205,0.00025,65]
[331740212,1720730691598,173.071205,0.00025,65]
[331740213,1720730692067,173.071205,0.00025,65]
[331740214,1720730692633,173.071205,0.00025,65]
[331740215,1720730693263,173.071205,0.00025,65]
[331740216,1720730693882,173.071205,0.00025,65]
[331740217,1720730694445,173.071205,0.00025,65]
[331740218,1720730695075,173.071205,0.00025,65]
[331740219,1720730695698,173.071205,0.00025,65]
[331740220,1720730696333,173.071205,0.00025,65]
[331740221,1720730711485,173.071205,0.00025,69]
[331740222,1720730712274,173.071205,0.00025,69]
[331740223,1720730712802,173.071205,0.00025,69]
[331740224,1720730713419,173.071205,0.00025,69]
[331740225,1720730713946,173.071205,0.00025,69]
[331740226,1720730717829,173.071205,0.00025,69]
[331740227,1720730718630,173.071205,0.00025,69]
[331740228,1720730719231,173.071205,0.00025,69]
[331740229,1720730719866,173.071205,0.00025,69]
[331740230,1720730735181,173.071205,0.00025,70]
[331740231,1720730735862,173.071205,0.00025,70]
[331740232,1720730736387,173.071205,0.00025,70]
[331740233,1720730737133,173.071205,0.00025,70]
[331740234,1720730737512,173.071205,0.00025,70]
[331740235,1720730738098,173.071205,0.00025,70]
[331740236,1720730738642,173.071205,0.00025,70]
[331740237,1720730739261,173.071205,0.00025,70]
[331740238,1720730740400,173.071205,0.00025,70]
[331740240,1720730792015,181.071205,0.00025,71]
[331740241,1720730792711,181.071205,0.00025,71]
[331740242,1720730793340,181.071205,0.00025,71]
[331740243,1720730793800,181.071205,0.00025,71]
[331740244,1720730794360,181.071205,0.00025,71]
[331740245,1720730794852,181.071205,0.00025,71]
[331740246,1720730795370,181.071205,0.00025,71]
[331740247,1720730798720,181.071205,0.00025,72]
[331740248,1720730799382,181.071205,0.00025,72]
[331740249,1720730800081,181.071205,0.00025,72]
[331740250,1720730800527,181.071205,0.00025,72]
[331740251,1720730801098,181.071205,0.00025,72]
[331740252,1720730801668,181.071205,0.00025,72]
[331740253,1720730802260,181.071205,0.00025,72]
[331740254,1720730830895,181.071205,0.00025,62]
[331740255,1720730831585,181.071205,0.00025,62]
[331740256,1720730832147,181.071205,0.00025,62]
[331740257,1720730832722,181.071205,0.00025,62]
[331740258,1720730833321,181.071205,0.00025,62]
[331740259,1720730833912,181.071205,0.00025,62]
[331740260,1720730842047,181.071205,0.00025,63]
[331740261,1720730842770,181.071205,0.00025,63]
[331740262,1720730843330,181.071205,0.00025,63]
[331740263,1720730843894,181.071205,0.00025,63]
[331740264,1720730844505,181.071205,0.00025,63]
[331740266,1720730847856,181.071205,0.00025,63]
[331740267,1720730854614,181.071205,0.00025,64]
[331740268,1720730855546,181.071205,0.00025,64]
[331740269,1720730856384,181.071205,0.00025,64]
[331740270,1720730856977,181.071205,0.00025,64]
[331740273,1720730859319,181.071205,0.00025,64]
[331740274,1720730862595,181.071205,0.00025,65]
[331740275,1720730863095,181.071205,0.00025,65]
[331740276,1720730863750,181.071205,0.00025,65]
[331740277,1720730864327,181.071205,0.00025,65]
[331740278,1720730864952,181.071205,0.00025,65]
[331740279,1720730865542,181.071205,0.00025,65]
[331740280,1720730879809,155.28848889,0.00011199,2]
[331740281,1720730888822,199.071205,0.00025,69]
[331740282,1720730889510,199.071205,0.00025,69]
[331740283,1720730890102,199.071205,0.00025,69]
[331740284,1720730890702,199.071205,0.00025,69]
[331740285,1720730897654,199.071205,0.00025,70]
[331740286,1720730898177,199.071205,0.00025,70]
[331740287,1720730898792,199.071205,0.00025,70]
[331740288,1720730899572,199.071205,0.00025,70]
[331740289,1720730903570,199.071205,0.00025,71]
[331740290,1720730904278,199.071205,0.00025,71]
[331740291,1720730904886,199.071205,0.00025,71]
[331740292,1720730905500,199.071205,0.00025,71]
[331740293,1720730913901,199.071205,0.00025,72]
[331740294,1720730914569,199.071205,0.00025,72]
[331740295,1720730915157,199.071205,0.00025,72]
[331740296,1720730915778,199.071205,0.00025,72]
[331740297,1720730927701,189.9449251,0.00011199,2]
[331740298,1720730966564,211.071205,0.00025,62]
[331740299,1720730967236,211.071205,0.00025,62]
[331740300,1720730967764,211.071205,0.00025,62]
[331740301,1720730968264,211.071205,0.00025,62]
[331740302,1720730972572,211.071205,0.00025,63]
[331740303,1720730973174,211.071205,0.00025,63]
[331740304,1720730973683,211.071205,0.00025,63]
[331740305,1720730974223,211.071205,0.00025,63]
[331740306,1720730977673,211.071205,0.00025,64]
[331740307,1720730978323,211.071205,0.00025,64]
[331740308,1720730978884,211.071205,0.00025,64]
[331740309,1720730979451,211.071205,0.00025,64]
[331740310,1720730983937,211.071205,0.00025,65]
[331740311,1720730984539,211.071205,0.00025,65]
[331740312,1720730985115,211.071205,0.00025,65]
[331740313,1720730985736,211.071205,0.00025,65]
[331740314,1720730997610,211.071205,0.00025,69]
[331740315,1720730998264,211.071205,0.00025,69]
[331740316,1720730998781,211.071205,0.00025,69]
[331740317,1720731004105,211.071205,0.00025,70]
[331740318,1720731004717,211.071205,0.00025,70]
[331740319,1720731005301,211.071205,0.00025,70]
[331740320,1720731008745,211.071205,0.00025,71]
[331740321,1720731009370,211.071205,0.00025,71]
[331740322,1720731010012,211.071205,0.00025,71]
[331740323,1720731013418,211.071205,0.00025,72]
[331740324,1720731014127,211.071205,0.00025,72]
[331740325,1720731014747,211.071205,0.00025,72]